[Event "Titled Tuesday Blitz January 17 Late 2023"]
[White "Melikhov, Evgeny V."]
[Black "Chlpik, Martin"]
[WhiteFideId "4122046"]
[BlackFideId "14923351"]
[WhiteElo "2269"]
[BlackElo "2287"]
[Result "0-1"]
[Round "09"]
[TimeControl "180+2"]
[Date "2023.01.17"]
[WhiteClock "0:00:15"]
[BlackClock "0:02:01"]

1. d4 {[%clk 0:02:54]}  Nf6 {[%clk 0:02:59]} 2. c4 {[%clk 0:02:54]}  c5 {[%clk 0:03:00]} 3. d5 {[%clk 0:02:54]}  e6 {[%clk 0:03:00]} 4. Nc3 {[%clk 0:02:53]}  exd5 {[%clk 0:03:00]} 5. cxd5 {[%clk 0:02:54]}  d6 {[%clk 0:03:01]} 6. Nf3 {[%clk 0:02:54]}  g6 {[%clk 0:03:01]} 7. h3 {[%clk 0:02:54]}  Bg7 {[%clk 0:03:02]} 8. e4 {[%clk 0:02:54]}  O-O {[%clk 0:03:01]} 9. Bd3 {[%clk 0:02:54]}  b5 {[%clk 0:03:01]} 10. Nxb5 {[%clk 0:02:45]}  Nxe4 {[%clk 0:03:01]} 11. Bxe4 {[%clk 0:02:40]}  Re8 {[%clk 0:03:01]} 12. Ng5 {[%clk 0:02:40]}  h6 {[%clk 0:02:51]} 13. Ne6 {[%clk 0:02:39]}  fxe6 {[%clk 0:02:41]} 14. dxe6 {[%clk 0:01:22]}  Bxe6 {[%clk 0:02:40]} 15. O-O {[%clk 0:01:16]}  d5 {[%clk 0:02:18]} 16. Bxg6 {[%clk 0:01:14]}  Rf8 {[%clk 0:02:16]} 17. Re1 {[%clk 0:01:04]}  Qf6 {[%clk 0:02:16]} 18. Qc2 {[%clk 0:01:00]}  Nc6 {[%clk 0:02:07]} 19. Nc7 {[%clk 0:00:56]}  Nd4 {[%clk 0:02:06]} 20. Qd2 {[%clk 0:00:19]}  Qxg6 {[%clk 0:02:05]} 21. Nxe6 {[%clk 0:00:18]}  Nf3+ {[%clk 0:02:05]} 22. Kh1 {[%clk 0:00:16]}  Nxd2 {[%clk 0:02:05]} 23. Nxf8 {[%clk 0:00:15]}  Rxf8 {[%clk 0:02:01]} 24. Bxd2 {[%clk 0:00:15]}  Rxf2 {[%clk 0:02:01]} 0-1


[Site "https://www.chess.com"]

[Event "Titled Tuesday Blitz January 17 Late 2023"]
[White "Mesa Cruz, Juan Carlos"]
[Black "ritanovikova"]
[WhiteFideId "6423400"]
[WhiteElo "2122"]
[BlackElo "2148"]
[Result "1-0"]
[Round "09"]
[TimeControl "180+2"]
[Date "2023.01.17"]
[WhiteClock "0:00:57"]
[BlackClock "0:00:12"]

1. e4 {[%clk 0:02:53]}  d5 {[%clk 0:02:59]} 2. exd5 {[%clk 0:02:49]}  Qxd5 {[%clk 0:03:00]} 3. Nc3 {[%clk 0:02:48]}  Qd6 {[%clk 0:03:01]} 4. Nf3 {[%clk 0:02:47]}  Nf6 {[%clk 0:03:01]} 5. g3 {[%clk 0:02:45]}  Bf5 {[%clk 0:03:01]} 6. d3 {[%clk 0:02:44]}  c6 {[%clk 0:03:01]} 7. Bg2 {[%clk 0:02:45]}  e6 {[%clk 0:03:01]} 8. O-O {[%clk 0:02:45]}  Nbd7 {[%clk 0:03:00]} 9. Bf4 {[%clk 0:02:45]}  Qb4 {[%clk 0:02:59]} 10. Qd2 {[%clk 0:02:45]}  Bd6 {[%clk 0:02:55]} 11. a3 {[%clk 0:02:38]}  Bxf4 {[%clk 0:02:54]} 12. axb4 {[%clk 0:02:38]}  Bxd2 {[%clk 0:02:53]} 13. Nxd2 {[%clk 0:02:39]}  O-O {[%clk 0:02:50]} 14. b5 {[%clk 0:02:39]}  Nd5 {[%clk 0:02:27]} 15. bxc6 {[%clk 0:02:29]}  bxc6 {[%clk 0:02:13]} 16. Nb3 {[%clk 0:02:26]}  N7f6 {[%clk 0:02:03]} 17. Nc5 {[%clk 0:02:18]}  Rab8 {[%clk 0:01:54]} 18. N3a4 {[%clk 0:01:54]}  Rb5 {[%clk 0:01:46]} 19. c4 {[%clk 0:01:52]}  Rxc5 {[%clk 0:01:41]} 20. Nxc5 {[%clk 0:01:53]}  Nb4 {[%clk 0:01:40]} 21. Rxa7 {[%clk 0:01:49]}  Nxd3 {[%clk 0:01:38]} 22. Nxd3 {[%clk 0:01:49]}  Bxd3 {[%clk 0:01:39]} 23. Rc1 {[%clk 0:01:49]}  c5 {[%clk 0:01:33]} 24. Rc7 {[%clk 0:01:46]}  g6 {[%clk 0:01:29]} 25. Rxc5 {[%clk 0:01:44]}  Rb8 {[%clk 0:01:29]} 26. Rd1 {[%clk 0:01:37]}  Bc2 {[%clk 0:01:24]} 27. Rd2 {[%clk 0:01:24]}  Rxb2 {[%clk 0:01:23]} 28. Rb5 {[%clk 0:01:25]}  Ra2 {[%clk 0:01:20]} 29. Bf3 {[%clk 0:01:16]}  Ra1+ {[%clk 0:01:15]} 30. Kg2 {[%clk 0:01:16]}  Ba4 {[%clk 0:01:02]} 31. Ra5 {[%clk 0:01:08]}  e5 {[%clk 0:00:34]} 32. Rd8+ {[%clk 0:01:07]}  Kg7 {[%clk 0:00:34]} 33. Rda8 {[%clk 0:01:08]}  e4 {[%clk 0:00:31]} 34. Rxa4 {[%clk 0:01:08]}  exf3+ {[%clk 0:00:30]} 35. Kxf3 {[%clk 0:01:09]}  Rc1 {[%clk 0:00:29]} 36. R8a7 {[%clk 0:01:06]}  Ne8 {[%clk 0:00:25]} 37. Rd7 {[%clk 0:01:05]}  Nf6 {[%clk 0:00:25]} 38. Re7 {[%clk 0:01:05]}  Rc3+ {[%clk 0:00:19]} 39. Kg2 {[%clk 0:01:05]}  Ng4 {[%clk 0:00:17]} 40. Raa7 {[%clk 0:01:02]}  Nh6 {[%clk 0:00:17]} 41. Rac7 {[%clk 0:01:01]}  g5 {[%clk 0:00:17]} 42. h3 {[%clk 0:01:00]}  Kg6 {[%clk 0:00:15]} 43. c5 {[%clk 0:00:59]}  f5 {[%clk 0:00:14]} 44. Re6+ {[%clk 0:00:58]}  Kh5 {[%clk 0:00:12]} 45. Rxh7 {[%clk 0:00:57]} 1-0


[Site "https://www.chess.com"]

[Event "Titled Tuesday Blitz January 17 Late 2023"]
[White "Sabar, Ethmane Daouda"]
[Black "Pace, Christopher"]
[WhiteFideId "19600097"]
[BlackFideId "2610167"]
[WhiteElo "2040"]
[BlackElo "2053"]
[Result "0-1"]
[Round "09"]
[TimeControl "180+2"]
[Date "2023.01.17"]
[WhiteClock "0:00:36"]
[BlackClock "0:01:32"]

1. e4 {[%clk 0:03:00]}  e5 {[%clk 0:02:59]} 2. Bc4 {[%clk 0:02:59]}  Nf6 {[%clk 0:02:58]} 3. d4 {[%clk 0:02:59]}  exd4 {[%clk 0:02:58]} 4. Nf3 {[%clk 0:02:59]}  Nc6 {[%clk 0:02:56]} 5. O-O {[%clk 0:02:59]}  Bc5 {[%clk 0:02:36]} 6. e5 {[%clk 0:02:54]}  d5 {[%clk 0:02:36]} 7. Bb5 {[%clk 0:02:52]}  Ne4 {[%clk 0:02:35]} 8. Nxd4 {[%clk 0:02:52]}  Bd7 {[%clk 0:02:35]} 9. Bxc6 {[%clk 0:02:49]}  bxc6 {[%clk 0:02:35]} 10. Nb3 {[%clk 0:02:50]}  Bb6 {[%clk 0:02:35]} 11. N1d2 {[%clk 0:02:50]}  Nxf2 {[%clk 0:02:16]} 12. Rxf2 {[%clk 0:02:45]}  O-O {[%clk 0:02:16]} 13. Nf3 {[%clk 0:02:40]}  Bxf2+ {[%clk 0:02:11]} 14. Kxf2 {[%clk 0:02:39]}  f6 {[%clk 0:02:12]} 15. Kg1 {[%clk 0:02:13]}  Bg4 {[%clk 0:02:05]} 16. Bf4 {[%clk 0:01:36]}  fxe5 {[%clk 0:01:56]} 17. Bxe5 {[%clk 0:01:37]}  Bxf3 {[%clk 0:01:37]} 18. gxf3 {[%clk 0:01:38]}  Qg5+ {[%clk 0:01:38]} 19. Bg3 {[%clk 0:01:38]}  h5 {[%clk 0:01:37]} 20. Qd4 {[%clk 0:01:23]}  Rxf3 {[%clk 0:01:32]} 21. Re1 {[%clk 0:00:48]}  Rxg3+ {[%clk 0:01:32]} 22. hxg3 {[%clk 0:00:45]}  Qxg3+ {[%clk 0:01:33]} 23. Kf1 {[%clk 0:00:36]}  Rf8+ {[%clk 0:01:33]} 24. Ke2 {[%clk 0:00:36]}  Re8+ {[%clk 0:01:32]} 0-1


[Site "https://www.chess.com"]

[Event "Titled Tuesday Blitz January 17 Late 2023"]
[White "Papp, Petra"]
[Black "rikchessmx"]
[WhiteFideId "739049"]
[WhiteElo "2343"]
[BlackElo "2289"]
[Result "0-1"]
[Round "09"]
[TimeControl "180+2"]
[Date "2023.01.17"]
[WhiteClock "0:00:03"]
[BlackClock "0:01:07"]

1. e4 {[%clk 0:03:00]}  c5 {[%clk 0:03:00]} 2. Nf3 {[%clk 0:02:59]}  e6 {[%clk 0:03:01]} 3. d4 {[%clk 0:02:56]}  a6 {[%clk 0:03:02]} 4. d5 {[%clk 0:02:52]}  b5 {[%clk 0:02:50]} 5. c4 {[%clk 0:02:50]}  b4 {[%clk 0:02:48]} 6. Bd3 {[%clk 0:02:46]}  d6 {[%clk 0:02:48]} 7. O-O {[%clk 0:02:44]}  e5 {[%clk 0:02:48]} 8. Ne1 {[%clk 0:02:38]}  Nf6 {[%clk 0:02:37]} 9. f4 {[%clk 0:02:38]}  Nbd7 {[%clk 0:02:37]} 10. f5 {[%clk 0:02:32]}  Nb6 {[%clk 0:02:34]} 11. b3 {[%clk 0:02:31]}  a5 {[%clk 0:02:34]} 12. Nf3 {[%clk 0:02:26]}  Bd7 {[%clk 0:02:33]} 13. Qe1 {[%clk 0:02:22]}  a4 {[%clk 0:02:33]} 14. bxa4 {[%clk 0:02:12]}  Rxa4 {[%clk 0:02:32]} 15. Nbd2 {[%clk 0:01:56]}  Qa8 {[%clk 0:02:30]} 16. Bb1 {[%clk 0:01:52]}  Qa6 {[%clk 0:02:29]} 17. Qe2 {[%clk 0:01:45]}  Be7 {[%clk 0:02:15]} 18. h3 {[%clk 0:01:33]}  O-O {[%clk 0:02:13]} 19. Qd3 {[%clk 0:01:30]}  Ra8 {[%clk 0:02:11]} 20. Qb3 {[%clk 0:01:30]}  Ra5 {[%clk 0:02:03]} 21. Kh1 {[%clk 0:01:24]}  Ba4 {[%clk 0:02:02]} 22. Qd3 {[%clk 0:01:21]}  Nh5 {[%clk 0:02:02]} 23. Ne1 {[%clk 0:01:04]}  Bh4 {[%clk 0:01:57]} 24. Rf3 {[%clk 0:00:57]}  Nf4 {[%clk 0:01:54]} 25. Qe3 {[%clk 0:00:55]}  Bg5 {[%clk 0:01:51]} 26. Bd3 {[%clk 0:00:39]}  Bh6 {[%clk 0:01:45]} 27. Qf2 {[%clk 0:00:22]}  Bd1 {[%clk 0:01:43]} 28. Rg3 {[%clk 0:00:22]}  b3 {[%clk 0:01:39]} 29. a3 {[%clk 0:00:17]}  Nh5 {[%clk 0:01:28]} 30. Ndf3 {[%clk 0:00:12]}  Nxg3+ {[%clk 0:01:24]} 31. Qxg3 {[%clk 0:00:12]}  Bxc1 {[%clk 0:01:23]} 32. Rxc1 {[%clk 0:00:11]}  Bxf3 {[%clk 0:01:21]} 33. Nxf3 {[%clk 0:00:11]}  b2 {[%clk 0:01:22]} 34. Rb1 {[%clk 0:00:10]}  Rxa3 {[%clk 0:01:22]} 35. Ng5 {[%clk 0:00:08]}  Ra1 {[%clk 0:01:17]} 36. Qh4 {[%clk 0:00:08]}  Rxb1+ {[%clk 0:01:16]} 37. Bxb1 {[%clk 0:00:09]}  h6 {[%clk 0:01:16]} 38. Nxf7 {[%clk 0:00:09]}  Kxf7 {[%clk 0:01:15]} 39. Qh5+ {[%clk 0:00:10]}  Kf8 {[%clk 0:01:15]} 40. f6 {[%clk 0:00:08]}  Qb7 {[%clk 0:01:14]} 41. fxg7+ {[%clk 0:00:06]}  Qxg7 {[%clk 0:01:13]} 42. Qf5+ {[%clk 0:00:07]}  Kg8 {[%clk 0:01:12]} 43. Qe6+ {[%clk 0:00:06]}  Kh8 {[%clk 0:01:12]} 44. Qxd6 {[%clk 0:00:06]}  Nxc4 {[%clk 0:01:12]} 45. Qc6 {[%clk 0:00:04]}  Rf8 {[%clk 0:01:12]} 46. Bd3 {[%clk 0:00:03]}  Nd2 {[%clk 0:01:07]} 0-1


[Site "https://www.chess.com"]

[Event "Titled Tuesday Blitz January 17 Late 2023"]
[White "Michalski, Olaf"]
[Black "Herbst, Richard"]
[WhiteFideId "1106740"]
[BlackFideId "2041251"]
[WhiteElo "2273"]
[BlackElo "2120"]
[Result "0-1"]
[Round "09"]
[TimeControl "180+2"]
[Date "2023.01.17"]
[WhiteClock "0:00:01"]
[BlackClock "0:01:16"]

1. d4 {[%clk 0:03:00]}  d5 {[%clk 0:02:59]} 2. c4 {[%clk 0:03:00]}  c6 {[%clk 0:02:59]} 3. cxd5 {[%clk 0:03:00]}  cxd5 {[%clk 0:02:59]} 4. Nc3 {[%clk 0:03:01]}  Nf6 {[%clk 0:02:59]} 5. Nf3 {[%clk 0:03:00]}  Nc6 {[%clk 0:02:59]} 6. Bf4 {[%clk 0:03:00]}  a6 {[%clk 0:02:59]} 7. e3 {[%clk 0:02:58]}  Bg4 {[%clk 0:02:59]} 8. h3 {[%clk 0:02:55]}  Bh5 {[%clk 0:02:56]} 9. Qb3 {[%clk 0:02:54]}  Na5 {[%clk 0:02:52]} 10. Qa4+ {[%clk 0:02:46]}  b5 {[%clk 0:02:26]} 11. Nxb5 {[%clk 0:02:39]}  axb5 {[%clk 0:02:25]} 12. Bxb5+ {[%clk 0:02:39]}  Nd7 {[%clk 0:02:25]} 13. Ne5 {[%clk 0:02:38]}  Nc6 {[%clk 0:02:24]} 14. Nxc6 {[%clk 0:01:03]}  Rxa4 {[%clk 0:02:20]} 15. Nxd8 {[%clk 0:01:03]}  Rb4 {[%clk 0:02:03]} 16. a4 {[%clk 0:00:15]}  Kxd8 {[%clk 0:02:02]} 17. Rb1 {[%clk 0:00:13]}  Bg6 {[%clk 0:01:58]} 18. Rc1 {[%clk 0:00:10]}  e5 {[%clk 0:01:57]} 19. dxe5 {[%clk 0:00:08]}  Nc5 {[%clk 0:01:53]} 20. O-O {[%clk 0:00:07]}  Nd3 {[%clk 0:01:46]} 21. Bxd3 {[%clk 0:00:02]}  Bxd3 {[%clk 0:01:45]} 22. Rfd1 {[%clk 0:00:02]}  Bc4 {[%clk 0:01:42]} 23. b3 {[%clk 0:00:03]}  Bxb3 {[%clk 0:01:42]} 24. Rd3 {[%clk 0:00:02]}  Bc4 {[%clk 0:01:39]} 25. Rd2 {[%clk 0:00:02]}  Rxa4 {[%clk 0:01:35]} 26. e4 {[%clk 0:00:01]}  Bb4 {[%clk 0:01:23]} 27. Rxc4 {[%clk 0:00:01]}  Ra1+ {[%clk 0:01:16]} 0-1


[Site "https://www.chess.com"]

[Event "Titled Tuesday Blitz January 17 Late 2023"]
[White "Cueto, Jonny"]
[Black "Curtis, John"]
[WhiteFideId "3300145"]
[BlackFideId "3200256"]
[WhiteElo "2122"]
[BlackElo "2292"]
[Result "1-0"]
[Round "09"]
[TimeControl "180+2"]
[Date "2023.01.17"]
[WhiteClock "0:00:47"]
[BlackClock "0:00:01"]

1. d4 {[%clk 0:03:00]}  Nf6 {[%clk 0:02:58]} 2. Bf4 {[%clk 0:02:59]}  d6 {[%clk 0:02:55]} 3. Nc3 {[%clk 0:02:58]}  Nh5 {[%clk 0:02:53]} 4. Bd2 {[%clk 0:02:53]}  Nc6 {[%clk 0:02:48]} 5. e4 {[%clk 0:02:52]}  g6 {[%clk 0:02:45]} 6. Be3 {[%clk 0:02:48]}  e5 {[%clk 0:02:39]} 7. d5 {[%clk 0:02:46]}  Ne7 {[%clk 0:02:36]} 8. f3 {[%clk 0:02:46]}  c6 {[%clk 0:02:31]} 9. Qd2 {[%clk 0:02:32]}  cxd5 {[%clk 0:02:09]} 10. Nxd5 {[%clk 0:02:33]}  Nxd5 {[%clk 0:02:08]} 11. exd5 {[%clk 0:02:33]}  a6 {[%clk 0:01:58]} 12. g4 {[%clk 0:02:33]}  Nf4 {[%clk 0:01:53]} 13. Bxf4 {[%clk 0:02:30]}  exf4 {[%clk 0:01:53]} 14. Qxf4 {[%clk 0:02:30]}  Bg7 {[%clk 0:01:49]} 15. O-O-O {[%clk 0:02:23]}  O-O {[%clk 0:01:47]} 16. h4 {[%clk 0:02:22]}  Qb6 {[%clk 0:01:18]} 17. c3 {[%clk 0:02:13]}  Bd7 {[%clk 0:01:17]} 18. h5 {[%clk 0:01:58]}  Rac8 {[%clk 0:01:09]} 19. Ne2 {[%clk 0:01:53]}  Rfe8 {[%clk 0:00:56]} 20. Qd2 {[%clk 0:01:39]}  Ba4 {[%clk 0:00:47]} 21. Re1 {[%clk 0:01:37]}  Bb5 {[%clk 0:00:44]} 22. hxg6 {[%clk 0:01:29]}  hxg6 {[%clk 0:00:39]} 23. Nf4 {[%clk 0:01:06]}  Rxe1+ {[%clk 0:00:21]} 24. Qxe1 {[%clk 0:01:03]}  Bxf1 {[%clk 0:00:15]} 25. Rxf1 {[%clk 0:00:52]}  Bh6 {[%clk 0:00:11]} 26. Qe4 {[%clk 0:00:51]}  a5 {[%clk 0:00:01]} 27. Kc2 {[%clk 0:00:52]}  Qb4 {[%clk 0:00:01]} 28. Nxg6 {[%clk 0:00:47]} 1-0


[Site "https://www.chess.com"]

[Event "Titled Tuesday Blitz January 17 Late 2023"]
[White "Almedina Ortiz, Edgardo J."]
[Black "Adithya A Chullikkad"]
[WhiteFideId "3100197"]
[BlackFideId "45078734"]
[WhiteElo "2156"]
[BlackElo "2259"]
[Result "1-0"]
[Round "09"]
[TimeControl "180+2"]
[Date "2023.01.17"]
[WhiteClock "0:00:20"]
[BlackClock "0:01:32"]

1. Nf3 {[%clk 0:02:59]}  Nf6 {[%clk 0:02:59]} 2. c4 {[%clk 0:02:58]}  e6 {[%clk 0:02:59]} 3. g3 {[%clk 0:02:49]}  b6 {[%clk 0:02:59]} 4. Bg2 {[%clk 0:02:49]}  Bb7 {[%clk 0:02:59]} 5. O-O {[%clk 0:02:48]}  Be7 {[%clk 0:02:59]} 6. Nc3 {[%clk 0:02:44]}  O-O {[%clk 0:02:59]} 7. d3 {[%clk 0:02:35]}  d5 {[%clk 0:02:57]} 8. cxd5 {[%clk 0:02:34]}  Nxd5 {[%clk 0:02:56]} 9. Bd2 {[%clk 0:02:33]}  Nd7 {[%clk 0:02:55]} 10. Rc1 {[%clk 0:02:31]}  N7f6 {[%clk 0:02:54]} 11. Qb3 {[%clk 0:02:10]}  Nxc3 {[%clk 0:02:48]} 12. bxc3 {[%clk 0:02:03]}  c5 {[%clk 0:02:45]} 13. a4 {[%clk 0:01:52]}  Qd5 {[%clk 0:02:45]} 14. c4 {[%clk 0:01:50]}  Qd7 {[%clk 0:02:42]} 15. a5 {[%clk 0:01:45]}  Qc7 {[%clk 0:02:42]} 16. Ra1 {[%clk 0:01:41]}  Bc6 {[%clk 0:02:33]} 17. Rfb1 {[%clk 0:01:37]}  Rab8 {[%clk 0:02:32]} 18. Qa2 {[%clk 0:01:31]}  Ra8 {[%clk 0:02:26]} 19. Bc3 {[%clk 0:01:30]}  Rfb8 {[%clk 0:02:24]} 20. Rb2 {[%clk 0:00:48]}  Ne8 {[%clk 0:02:21]} 21. Qb1 {[%clk 0:00:46]}  Bd8 {[%clk 0:02:18]} 22. Be5 {[%clk 0:00:43]}  Nd6 {[%clk 0:02:15]} 23. axb6 {[%clk 0:00:41]}  axb6 {[%clk 0:02:13]} 24. Rba2 {[%clk 0:00:40]}  f6 {[%clk 0:02:09]} 25. Bc3 {[%clk 0:00:39]}  Qb7 {[%clk 0:02:07]} 26. Ne1 {[%clk 0:00:34]}  Bc7 {[%clk 0:02:03]} 27. Bxc6 {[%clk 0:00:32]}  Qxc6 {[%clk 0:02:03]} 28. Ng2 {[%clk 0:00:32]}  Rxa2 {[%clk 0:01:54]} 29. Qxa2 {[%clk 0:00:32]}  h6 {[%clk 0:01:53]} 30. Nf4 {[%clk 0:00:31]}  Nf5 {[%clk 0:01:49]} 31. Qa7 {[%clk 0:00:26]}  Bxf4 {[%clk 0:01:48]} 32. gxf4 {[%clk 0:00:24]}  Rb7 {[%clk 0:01:47]} 33. Qa8+ {[%clk 0:00:23]}  Kh7 {[%clk 0:01:47]} 34. Ra7 {[%clk 0:00:22]}  Nh4 {[%clk 0:01:40]} 35. Qxb7 {[%clk 0:00:19]}  Qxb7 {[%clk 0:01:32]} 36. Rxb7 {[%clk 0:00:20]} 1-0


[Site "https://www.chess.com"]

[Event "Titled Tuesday Blitz January 17 Late 2023"]
[White "Coe, William"]
[Black "Rosh Jain"]
[WhiteFideId "30913624"]
[BlackFideId "25789465"]
[WhiteElo "2078"]
[BlackElo "2248"]
[Result "0-1"]
[Round "09"]
[TimeControl "180+2"]
[Date "2023.01.17"]
[WhiteClock "0:01:10"]
[BlackClock "0:01:23"]

1. e4 {[%clk 0:02:58]}  c5 {[%clk 0:02:57]} 2. Nf3 {[%clk 0:02:59]}  d6 {[%clk 0:02:56]} 3. d4 {[%clk 0:02:59]}  cxd4 {[%clk 0:02:57]} 4. Nxd4 {[%clk 0:03:00]}  Nf6 {[%clk 0:02:53]} 5. Nc3 {[%clk 0:03:00]}  a6 {[%clk 0:02:53]} 6. h3 {[%clk 0:03:00]}  e5 {[%clk 0:02:50]} 7. Nde2 {[%clk 0:03:01]}  h5 {[%clk 0:02:50]} 8. g3 {[%clk 0:03:02]}  Be7 {[%clk 0:02:50]} 9. Bg2 {[%clk 0:03:02]}  Be6 {[%clk 0:02:49]} 10. O-O {[%clk 0:03:02]}  Nbd7 {[%clk 0:02:49]} 11. a4 {[%clk 0:03:01]}  O-O {[%clk 0:02:49]} 12. Be3 {[%clk 0:03:00]}  Rc8 {[%clk 0:02:47]} 13. Nd5 {[%clk 0:02:49]}  Nxd5 {[%clk 0:02:33]} 14. exd5 {[%clk 0:02:50]}  Bf5 {[%clk 0:02:33]} 15. Rc1 {[%clk 0:02:40]}  Bg5 {[%clk 0:02:27]} 16. f4 {[%clk 0:02:26]}  Bh6 {[%clk 0:02:14]} 17. c4 {[%clk 0:02:17]}  Re8 {[%clk 0:02:11]} 18. b3 {[%clk 0:02:13]}  Nc5 {[%clk 0:01:58]} 19. Nc3 {[%clk 0:01:50]}  Nd3 {[%clk 0:01:45]} 20. Ra1 {[%clk 0:01:50]}  exf4 {[%clk 0:01:45]} 21. Bxf4 {[%clk 0:01:50]}  Nxf4 {[%clk 0:01:42]} 22. gxf4 {[%clk 0:01:50]}  Re3 {[%clk 0:01:41]} 23. Qxh5 {[%clk 0:01:29]}  Bg6 {[%clk 0:01:33]} 24. Qd1 {[%clk 0:01:10]}  Rxc3 {[%clk 0:01:28]} 25. f5 {[%clk 0:01:10]}  Bh7 {[%clk 0:01:25]} 26. Qd4 {[%clk 0:01:10]}  Be3+ {[%clk 0:01:23]} 0-1


[Site "https://www.chess.com"]

[Event "Titled Tuesday Blitz January 17 Late 2023"]
[White "Guevara Sanchez, Erick Marvin"]
[Black "Fajdetic, Hrvoje"]
[WhiteFideId "6700136"]
[BlackFideId "14501945"]
[WhiteElo "2073"]
[BlackElo "2151"]
[Result "0-1"]
[Round "09"]
[TimeControl "180+2"]
[Date "2023.01.17"]
[WhiteClock "0:00:43"]
[BlackClock "0:00:04"]

1. e4 {[%clk 0:03:00]}  c5 {[%clk 0:02:58]} 2. Nf3 {[%clk 0:03:00]}  a6 {[%clk 0:02:58]} 3. c4 {[%clk 0:02:56]}  Nc6 {[%clk 0:02:57]} 4. d4 {[%clk 0:02:55]}  cxd4 {[%clk 0:02:57]} 5. Nxd4 {[%clk 0:02:56]}  g6 {[%clk 0:02:56]} 6. Nc3 {[%clk 0:02:55]}  Bg7 {[%clk 0:02:55]} 7. Be3 {[%clk 0:02:55]}  d6 {[%clk 0:02:49]} 8. Be2 {[%clk 0:02:53]}  Nf6 {[%clk 0:02:49]} 9. h3 {[%clk 0:02:52]}  O-O {[%clk 0:02:40]} 10. O-O {[%clk 0:02:52]}  Nxd4 {[%clk 0:02:38]} 11. Bxd4 {[%clk 0:02:51]}  Be6 {[%clk 0:02:38]} 12. Qb3 {[%clk 0:02:23]}  b5 {[%clk 0:02:30]} 13. Nd5 {[%clk 0:02:20]}  Nxe4 {[%clk 0:02:22]} 14. Bxg7 {[%clk 0:02:19]}  Kxg7 {[%clk 0:02:20]} 15. cxb5 {[%clk 0:02:14]}  axb5 {[%clk 0:01:49]} 16. Bxb5 {[%clk 0:02:13]}  Qa5 {[%clk 0:01:38]} 17. a4 {[%clk 0:02:06]}  Nd2 {[%clk 0:01:29]} 18. Qd3 {[%clk 0:02:03]}  Nxf1 {[%clk 0:01:26]} 19. Qd4+ {[%clk 0:01:56]}  f6 {[%clk 0:01:26]} 20. Nxe7 {[%clk 0:01:48]}  Qxb5 {[%clk 0:01:13]} 21. axb5 {[%clk 0:01:39]}  Rxa1 {[%clk 0:01:14]} 22. f3 {[%clk 0:01:34]}  Ng3+ {[%clk 0:01:06]} 23. Kf2 {[%clk 0:01:33]}  Nf5 {[%clk 0:01:05]} 24. Nxf5+ {[%clk 0:01:30]}  Bxf5 {[%clk 0:01:03]} 25. Qxd6 {[%clk 0:01:30]}  Rb1 {[%clk 0:00:54]} 26. Qd4 {[%clk 0:01:21]}  Rc8 {[%clk 0:00:48]} 27. g4 {[%clk 0:01:20]}  Rc2+ {[%clk 0:00:37]} 28. Ke3 {[%clk 0:01:19]}  Be6 {[%clk 0:00:32]} 29. Qd6 {[%clk 0:00:58]}  Bf7 {[%clk 0:00:26]} 30. b4 {[%clk 0:00:55]}  Rcb2 {[%clk 0:00:26]} 31. h4 {[%clk 0:00:51]}  Rxb4 {[%clk 0:00:24]} 32. h5 {[%clk 0:00:51]}  R1b3+ {[%clk 0:00:21]} 33. Kf2 {[%clk 0:00:51]}  gxh5 {[%clk 0:00:18]} 34. gxh5 {[%clk 0:00:48]}  Bxh5 {[%clk 0:00:17]} 35. Qg3+ {[%clk 0:00:47]}  Bg6 {[%clk 0:00:15]} 36. Qc7+ {[%clk 0:00:47]}  Kh6 {[%clk 0:00:14]} 37. Kg3 {[%clk 0:00:46]}  Rxb5 {[%clk 0:00:13]} 38. Qe7 {[%clk 0:00:46]}  Rg5+ {[%clk 0:00:12]} 39. Kf2 {[%clk 0:00:45]}  Rf5 {[%clk 0:00:12]} 40. Kg3 {[%clk 0:00:45]}  Rbxf3+ {[%clk 0:00:11]} 41. Kh4 {[%clk 0:00:46]}  R3f4+ {[%clk 0:00:10]} 42. Kh3 {[%clk 0:00:46]}  Rf2 {[%clk 0:00:08]} 43. Kg3 {[%clk 0:00:45]}  R5f3+ {[%clk 0:00:08]} 44. Kg4 {[%clk 0:00:45]}  Bf5+ {[%clk 0:00:06]} 45. Kh4 {[%clk 0:00:43]}  Rh3# {[%clk 0:00:04]} 0-1


[Site "https://www.chess.com"]

[Event "Titled Tuesday Blitz January 17 Late 2023"]
[White "Bongo Akanga Ndjila, Barthelemy"]
[Black "Stanisz, Patryk"]
[WhiteFideId "10609431"]
[BlackFideId "1123106"]
[WhiteElo "1824"]
[BlackElo "2161"]
[Result "0-1"]
[Round "09"]
[TimeControl "180+2"]
[Date "2023.01.17"]
[WhiteClock "0:00:03"]
[BlackClock "0:00:46"]

1. d4 {[%clk 0:03:00]}  d5 {[%clk 0:02:59]} 2. Nf3 {[%clk 0:02:58]}  Nf6 {[%clk 0:02:58]} 3. c4 {[%clk 0:02:47]}  c6 {[%clk 0:02:58]} 4. Qc2 {[%clk 0:02:46]}  dxc4 {[%clk 0:02:57]} 5. Qxc4 {[%clk 0:02:46]}  Nbd7 {[%clk 0:02:57]} 6. Nbd2 {[%clk 0:02:45]}  Nb6 {[%clk 0:02:57]} 7. Qc2 {[%clk 0:02:44]}  g6 {[%clk 0:02:57]} 8. e4 {[%clk 0:02:44]}  Bg7 {[%clk 0:02:56]} 9. b4 {[%clk 0:02:42]}  O-O {[%clk 0:02:53]} 10. Bb2 {[%clk 0:02:42]}  a5 {[%clk 0:02:51]} 11. a3 {[%clk 0:02:41]}  axb4 {[%clk 0:02:51]} 12. axb4 {[%clk 0:02:40]}  Rxa1+ {[%clk 0:02:52]} 13. Bxa1 {[%clk 0:02:41]}  Bg4 {[%clk 0:02:50]} 14. Bd3 {[%clk 0:02:39]}  Re8 {[%clk 0:02:44]} 15. O-O {[%clk 0:02:38]}  Qc7 {[%clk 0:02:32]} 16. h3 {[%clk 0:02:38]}  Be6 {[%clk 0:02:23]} 17. Ng5 {[%clk 0:02:29]}  Bd7 {[%clk 0:02:23]} 18. f4 {[%clk 0:02:25]}  Ra8 {[%clk 0:02:23]} 19. f5 {[%clk 0:02:19]}  Qg3 {[%clk 0:02:14]} 20. Ngf3 {[%clk 0:02:12]}  Nh5 {[%clk 0:02:10]} 21. Kh1 {[%clk 0:01:37]}  Nf4 {[%clk 0:02:05]} 22. Rg1 {[%clk 0:01:29]}  Rxa1 {[%clk 0:02:03]} 23. Nf1 {[%clk 0:01:03]}  Rxf1 {[%clk 0:01:13]} 24. Rxf1 {[%clk 0:00:49]}  gxf5 {[%clk 0:01:03]} 25. exf5 {[%clk 0:00:27]}  Nbd5 {[%clk 0:01:02]} 26. Be4 {[%clk 0:00:16]}  Ne3 {[%clk 0:00:58]} 27. Qb1 {[%clk 0:00:12]}  Nfxg2 {[%clk 0:00:52]} 28. Ng1 {[%clk 0:00:06]}  Bxd4 {[%clk 0:00:48]} 29. Bxg2 {[%clk 0:00:03]}  Qxg2# {[%clk 0:00:46]} 0-1


[Site "https://www.chess.com"]